[Event "Czech Open Rapid G1 2024"]
[Site "Pardubice"]
[Date "2024.07.17"]
[Round "2.5"]
[White "Pulpan, Jakub"]
[Black "Bouska, Jiri"]
[Result "1/2-1/2"]
[Annotator "TA"]
[ECO "A13"]
[WhiteElo "2383"]
[BlackElo "2222"]
[PlyCount "160"]
[EventDate "2024.07.16"]
[EventType "swiss"]
[EventCountry "CZE"]
[SourceTitle "playchess.com"]
[Source "ChessBase"]
[SourceQuality "1"]
[TimeControl "1200+10"]

{[%evp 59,160,30,31,28,41,33,40,38,37,37,34,-31,0,0,0,0,0,0,0,0,0,0,0,0,0,0,0,-8,48,7,7,0,0,0,10,10,10,10,10,5,35,0,0,0,0,0,0,0,231,229,213,167,167,0,199,191,199,191,184,184,184,177,177,177,169,169,29971,29974,29973,29975,29974,0,0,0,0,0,0,0,0,0,0,0,0,0,0,0,0,0,0,0,0,0,0,0,0,0,0,0,0,0,0,0,0]} 1. Nf3 {[%emt 0:00:01]} d5 {[%emt 0:00:01]} 2. e3 {[%emt 0:00:13]} Nf6 {[%emt 0:00:05]} 3. c4 {[%emt 0:00:11]} e6 {[%emt 0:00:05]} 4. b3 {[%emt 0:00:02]} Bd6 {[%emt 0:00:02]} 5. Bb2 {[%emt 0:00:01]} O-O {[%emt 0:00:03]} 6. Be2 {[%emt 0:00:04]} Re8 {[%emt 0:00:01]} 7. d4 {[%emt 0:00:07]} b6 {[%emt 0:00:05]} 8. O-O {[%emt 0:00:11]} Bb7 {[%emt 0:00:01]} 9. Nc3 {[%emt 0:00:13]} Nbd7 {[%emt 0:00:06]} 10. Rc1 {[%emt 0:00:07]} a6 {[%emt 0:00:02]} 11. Qc2 {[%emt 0:00:21]} c5 {[%emt 0:01:17]} 12. cxd5 {[%emt 0:00:06]} exd5 {[%emt 0:00:07]} 13. dxc5 {[%emt 0:00:05]} bxc5 {[%emt 0:00:17]} 14. Rfd1 {[%emt 0:00:02]} Qe7 {[%emt 0:00:21]} 15. Qf5 {[%emt 0:00:36]} Qe6 {[%emt 0:02:09]} 16. Bd3 {[%emt 0:02:29]} Qxf5 {[%emt 0:02:10]} 17. Bxf5 {[%emt 0:00:02]} Nb6 {[%emt 0:00:19]} 18. Nb1 {[%emt 0:00:52]} Ne4 {[%emt 0:04:08]} 19. Ba3 {[%emt 0:00:29]} Bf8 {[%emt 0:02:28]} 20. Nfd2 {[%emt 0:01:21]} Re5 {[%emt 0:02:39]} 21. Bh3 {[%emt 0:01:47]} g6 {[%emt 0:02:00]} 22. Nxe4 {[%emt 0:04:05]} dxe4 {[%emt 0:00:01]} 23. Nc3 {[%emt 0:00:36]} f5 {[%emt 0:00:31]} 24. g3 {[%emt 0:00:13]} Ree8 {[%emt 0:00:43]} 25. Bf1 {[%emt 0:00:10]} Rad8 {[%emt 0:00:30]} 26. Rxd8 {[%emt 0:00:26]} Rxd8 {[%emt 0:00:01]} 27. Nb1 {[%emt 0:00:02]} Rc8 {[%emt 0:00:35]} 28. Nd2 {[%emt 0:00:09]} Bd5 {[%emt 0:02:00]} 29. Nc4 {[%emt 0:01:22]} Nxc4 {[%emt 0:00:02]} 30. Bxc4 Bxc4 {[%emt 0:00:16]} 31. Rxc4 {[%emt 0:00:11]} a5 {[%emt 0:00:04]} 32. Bb2 {[%emt 0:00:15]} Bd6 {[%emt 0:00:19]} 33. Bc3 {[%emt 0:00:09]} Ra8 {[%emt 0:00:06]} 34. Ra4 {[%emt 0:00:06]} Bc7 $1 {[%emt 0:00:03]} 35. a3 {[%emt 0:00:14]} (35. f3 $14) 35... Rb8 {[%emt 0:00:22]} 36. b4 {[%emt 0:00:26]} cxb4 {[%emt 0:00:05]} 37. axb4 {[%emt 0:00:01]} axb4 {[%emt 0:00:01]} 38. Bxb4 {[%emt 0:00:01]} Be5 {[%emt 0:00:13]} 39. Kg2 {[%emt 0:00:11]} Rb7 {[%emt 0:00:12]} 40. Bc5 {[%emt 0:00:06]} Kf7 {[%emt 0:00:10]} 41. Ra8 {[%emt 0:00:22]} Rc7 {[%emt 0:00:17]} 42. Ba3 {[%emt 0:00:04]} Rd7 {[%emt 0:00:23]} 43. g4 {[%emt 0:00:31]} Bd6 {[%emt 0:01:32]} (43... fxg4 $11 44. Ra4 h5) 44. gxf5 {[%emt 0:00:46]} gxf5 {[%emt 0:00:07]} 45. Bb2 {[%emt 0:00:03]} Rb7 {[%emt 0:00:23]} 46. Bd4 {[%emt 0:00:08]} Bf8 {[%emt 0:00:02]} 47. Ra5 {[%emt 0:00:12]} Kg6 {[%emt 0:00:04]} 48. Ra6+ {[%emt 0:00:02]} Kg5 {[%emt 0:00:15]} 49. Kg3 {[%emt 0:02:37]} Bg7 {[%emt 0:00:08]} 50. Bxg7 Rxg7 {[%emt 0:00:02]} 51. h4+ {[%emt 0:02:17]} Kh5+ {[%emt 0:00:01]} 52. Kf4 {[%emt 0:00:00]} Rg2 {[%emt 0:00:30]} 53. Ra2 {[%emt 0:00:02]} Rg4+ $2 {[%emt 0:00:14]} (53... Kxh4 $11 54. Kxf5 Rg8) 54. Kxf5 $18 {[%emt 0:00:02]} Rxh4 {[%emt 0:00:05]} 55. Ra1 {[%emt 0:00:45]} Rh2 {[%emt 0:00:10]} 56. Ra2 {[%emt 0:00:39]} ({Inferior is} 56. Kxe4 Rxf2 57. Rg1 Rf8 $11) 56... Rh4 {[%emt 0:00:01]} 57. Ra7 {[%emt 0:01:19]} h6 {[%emt 0:00:01]} 58. Rf7 {[%emt 0:00:20]} Rg4 {[%emt 0:00:13]} 59. Rf6 {[%emt 0:00:24]} Rh4 {[%emt 0:00:02]} 60. Ke5 {[%emt 0:01:16]} Kg5 {[%emt 0:00:24]} 61. Rf5+ {[%emt 0:00:05]} Kg6 {[%emt 0:00:13]} 62. Rf4 {[%emt 0:00:20]} Kg5 $2 {[%emt 0:00:01]} (62... Rh2 $18 63. Kxe4 Rh5) 63. Rxh4 {[%emt 0:00:11]} ({Weaker is} 63. Kxe4 Rxf4+ 64. exf4+ Kf6 $11) 63... Kxh4 {[%emt 0:00:02]} 64. Kxe4 {[%emt 0:00:01]} Kg4 {[%emt 0:00:15]} 65. f3+ $2 {[%emt 0:00:04]} (65. Kd3 {mates} Kf3 66. e4 Kf4 67. f3 (67. Kd4 h5 $18) 67... Ke5 68. Ke3 Kd6 69. f4 h5 70. Kf3) 65... Kg3 $11 {[%emt 0:00:09]} 66. f4 {[%emt 0:00:01]} h5 {[%emt 0:00:01]} 67. f5 {[%emt 0:00:01]} (67. Ke5 $5 h4 $8 68. f5 $11) 67... h4 {[%emt 0:00:02]} 68. f6 {[%emt 0:00:01]} (68. Ke5 $5 h3 $8 69. f6 $11) 68... h3 {[%emt 0:00:01]} 69. f7 {[%emt 0:00:02]} h2 {[%emt 0:00:02]} 70. f8=Q {[%emt 0:00:01]} h1=Q+ {[%emt 0:00:01]} 71. Ke5 {[%emt 0:00:08]} Qa1+ {[%emt 0:00:04]} 72. Kd5 {[%emt 0:00:08]} Qa2+ {[%emt 0:00:07]} 73. Kd4 {[%emt 0:00:26]} Qa1+ {[%emt 0:00:02]} 74. Kc4 {[%emt 0:00:07]} Qc1+ {[%emt 0:00:07]} 75. Kd3 {[%emt 0:00:17]} Qd1+ {[%emt 0:00:03]} 76. Ke4 {[%emt 0:00:12]} Qb1+ {[%emt 0:00:07]} 77. Ke5 {[%emt 0:00:11]} Qb2+ {[%emt 0:00:14]} 78. Kd5 {[%emt 0:00:07]} Qb3+ {[%emt 0:00:07]} 79. Kd4 {[%emt 0:00:06]} Qb2+ {[%emt 0:00:05]} 80. Kc4 {[%emt 0:00:02]} Qe2+ {[%emt 0:00:05]} 1/2-1/2

[Event "Czech Open Rapid G1 2024"]
[Site "Pardubice"]
[Date "2024.07.17"]
[Round "2.6"]
[White "Berin, Artem"]
[Black "Neuman, Petr"]
[Result "0-1"]
[Annotator "TA"]
[ECO "E94"]
[WhiteElo "2234"]
[BlackElo "2441"]
[PlyCount "110"]
[EventDate "2024.07.16"]
[EventType "swiss"]
[EventCountry "CZE"]
[SourceTitle "playchess.com"]
[Source "ChessBase"]
[SourceQuality "1"]
[TimeControl "1200+10"]

{[%evp 18,110,61,0,35,31,34,28,30,34,32,29,39,36,32,27,31,27,30,12,22,0,0,-6,0,0,0,-67,0,-16,-28,-35,-30,-50,-45,-102,-69,-105,-120,-108,-108,-133,-128,-202,-201,-187,-116,-102,-105,-287,-302,-293,-287,-195,-79,-79,0,-2,0,-396,-442,-437,-441,-510,-108,-134,0,-504,-443,-730,-502,-441,-425,-389,-398,-838,-842,-818,-818,-6207,-2394,-29978,-1991,-29980,-29981,-29982,-29983,-29992,-29987,-29988,-29985,-29985,-29986,-29976,-1772]} 1. d4 {[%emt 0:00:02]} d6 {[%emt 0:00:01]} 2. Nf3 {[%emt 0:00:09]} Nf6 {[%emt 0:00:02]} 3. c4 {[%emt 0:00:02]} g6 {[%emt 0:00:01]} 4. Nc3 {[%emt 0:00:02]} Bg7 {[%emt 0:00:02]} 5. e4 {[%emt 0:00:01]} O-O {[%emt 0:00:02]} 6. Be2 {[%emt 0:00:02]} e5 {[%emt 0:00:02]} 7. O-O {[%emt 0:00:04]} Na6 {[%emt 0:00:02]} 8. Re1 {[%emt 0:00:19]} c6 {[%emt 0:00:07]} 9. Bf1 {[%emt 0:01:06]} Bg4 {[%emt 0:00:03]} 10. Be3 {[%emt 0:00:03]} (10. dxe5 Bxf3 11. Qxf3 dxe5 $11) (10. d5 $14) 10... Bxf3 {[%emt 0:00:17]} 11. Qxf3 {[%emt 0:00:04]} Ng4 {[%emt 0:00:06]} 12. Qxg4 {[%emt 0:01:05]} exd4 {[%emt 0:00:03] White has an edge.} 13. Bg5 {[%emt 0:00:01][%cal Be3g5,Bg5d2,Bd2c3][%mdl 32]} f6 {[%emt 0:00:09][%cal Bf7f6,Bf6f5][%mdl 32]} 14. Bd2 {[%emt 0:01:11]} dxc3 {[%emt 0:00:13]} 15. Bxc3 {[%emt 0:00:01]} f5 {[%emt 0:00:20]} 16. Qg3 {[%emt 0:02:32]} f4 {[%emt 0:00:54]} 17. Qh3 {[%emt 0:00:31][%cal Oc4c5]} Qe7 {[%emt 0:01:44]} 18. Bxg7 {[%emt 0:03:30]} Kxg7 {[%emt 0:00:01]} 19. Qa3 {[%emt 0:00:22][%cal Oe4e5]} Qe5 {[%emt 0:00:25]} 20. Rad1 {[%emt 0:00:26]} Nc5 {[%emt 0:02:28]} 21. b4 {[%emt 0:03:35]} Ne6 {[%emt 0:00:03][%cal Of4f3]} 22. b5 {[%emt 0:02:11]} ({White should try} 22. Qd3 $11) 22... Nc5 {[%emt 0:00:35]} (22... Nd4 $15 23. bxc6 bxc6) 23. bxc6 {[%emt 0:00:02]} bxc6 {[%emt 0:00:01]} 24. Qa5 {[%emt 0:00:04]} Rf7 {[%emt 0:00:47] Wards off Qc7} 25. Rd2 {[%emt 0:00:23]} f3 {[%emt 0:02:14]} (25... Nxe4 $2 26. Qxe5+ dxe5 27. Rxe4 $18) (25... Rb8 $5) 26. g3 {[%emt 0:00:31]} (26. gxf3 $15 Rxf3 27. Bg2 (27. Qc7+ Rf7 $11)) 26... Re8 {[%emt 0:00:17][%cal Oh7h5]} (26... Nxe4 $2 27. Qxe5+ dxe5 28. Rxe4 $18) 27. Re3 {[%emt 0:01:04]} g5 {[%emt 0:01:18]} (27... Nxe4 $6 28. Qxe5+ Rxe5 29. Rxd6 $11) 28. Rd1 {[%emt 0:01:42]} g4 {[%emt 0:00:20][%cal Oh7h5] Against Bh3} (28... Nxe4 $6 29. Qxe5+ Rxe5 30. Rxd6 $11) 29. h3 {[%emt 0:01:12]} h5 {[%emt 0:00:01]} (29... Nxe4 $6 30. Qxe5+ Rxe5 31. Rxd6 $11) 30. h4 {[%emt 0:00:01]} (30. Qd2 $17 {might work better.}) 30... Rb7 $19 {[%emt 0:01:14]} (30... Nxe4 31. Qxe5+ Rxe5 32. Rxd6 $11) 31. Ree1 {[%emt 0:01:08][%cal Be3e1,Be1b1,Bb1b8][%mdl 32]} Kf7 {[%emt 0:03:19]} (31... Ree7 $19 32. Qd8 Nxe4) 32. Qd2 $17 {[%emt 0:00:19]} Re6 {[%emt 0:00:21]} (32... Nxe4 33. Qh6 $14) 33. Rb1 {[%emt 0:00:47] Prevents Rb2} (33. Qc1 $17) 33... Rxb1 $19 {[%emt 0:01:13]} (33... Nxe4 $2 34. Rxb7+ Kf8 35. Rb8+ (35. Rxa7 $2 Nxd2 36. Rxe5 Rxe5 $19) 35... Kf7 36. Rxe4 Qxe4 37. Qg5 $18) 34. Rxb1 {[%emt 0:00:01]} Nxe4 {[%emt 0:00:03]} (34... Qxe4 35. Rb8 $11) 35. Qe3 {[%emt 0:00:45]} Nc5 {[%emt 0:00:07] Repels Rb7+} (35... Qc5 $19 {aiming for ...Qxe3.} 36. Rb7+ Kg6) 36. Qd2 $17 {[%emt 0:00:28]} Qf6 {[%emt 0:02:16]} ({Better is} 36... Qh8 $17) 37. Rb8 {[%emt 0:00:08]} Ne4 {[%emt 0:00:58]} (37... Re8 {simplifies} 38. Rxe8 Kxe8 39. Qb4 Kf7) 38. Qe3 {[%emt 0:00:16][%mdl 8192]} (38. Qa5 $11 {and White stays safe.} Re5 39. Rb7+ Kf8 (39... Kg6 $2 40. Qc7 $18) 40. Qxa7) 38... Re7 $19 {[%emt 0:02:14][%cal Oe4g3] [#] ...Nxg3! is the strong threat. Active counter play!} (38... Nxg3 39. Rb7+ Kg6 40. Bd3+ Nf5 41. Qd2 $19) 39. Qd3 {[%emt 0:00:12]} Kg7 {[%emt 0:00:28][%cal Oe4f2] And now ...Nxf2! would win.} 40. Rb1 {[%emt 0:00:10]} Nc5 $2 {[%emt 0:00:22]} (40... Qe5 $19 {[%cal Oe4f2] and Black stays clearly on top. ( -> ...Nxf2!)} 41. Qe3 Nc3 42. Qxe5+ Rxe5 (42... dxe5 $2 43. Rb3 $19)) 41. Qd2 $17 {[%emt 0:00:02] [#]} Ne4 $2 $40 {[%emt 0:00:10][%mdl 8320] White needs to defend precisely.} (41... Qe5 $1 $17 42. Bd3 d5 43. cxd5 Nxd3 (43... Qxd5 44. Qc3+ Qe5 45. Qc2 $11) (43... cxd5 44. Kh2 $11) 44. Qxd3 cxd5) 42. Qd3 $19 {[%emt 0:00:01]} Qc3 {[%emt 0:00:53] Repels Re1} 43. Qd1 {[%emt 0:00:03]} (43. a3 $142) 43... Qd2 {[%emt 0:00:12]} 44. Qe1 {[%emt 0:00:25]} Qxe1 {[%emt 0:00:05]} (44... Qxa2 45. Bd3 Qd2 (45... d5 46. cxd5 cxd5 47. Bxe4 $16) 46. Bxe4 Qxe1+ (46... Qd4 47. Qc1 $17) 47. Rxe1) 45. Rxe1 {[%emt 0:00:02][%mdl 4096] Endgame. KRB-KRN} Re5 {[%emt 0:00:13]} 46. Re3 $2 {[%emt 0:00:26]} (46. Bd3 Nc5 47. Rd1) 46... Nc5 {[%emt 0:00:06] Strongly threatening ...Rxe3.} 47. Ra3 {[%emt 0:00:12]} a6 {[%emt 0:00:01]} 48. Re3 {[%emt 0:00:08]} Kf6 {[%emt 0:00:05]} (48... Rxe3 $142 49. fxe3 Kf6) 49. Ra3 {[%emt 0:00:02]} Re1 {[%emt 0:00:12]} 50. Rc3 {[%emt 0:00:09]} Ke5 {[%emt 0:00:06] Black mates.} 51. Rc2 {[%emt 0:00:04]} Ne4 {[%emt 0:00:04]} 52. Rb2 {[%emt 0:00:08]} Kd4 {[%emt 0:00:12]} 53. Rc2 {[%emt 0:00:04]} a5 {[%emt 0:00:02]} 54. c5 {[%emt 0:00:13]} d5 {[%emt 0:00:05]} 55. a4 {[%emt 0:00:06]} Rd1 {[%emt 0:00:12] Weighted Error Value: White=0.66/Black=0.42.  Loses game:     	White=2     	---        Missed win:     	---       	Black=1      Mistake:       	White=5     	Black=5      Inaccurate:     	White=1     	Black=2      OK:         	White=15    	Black=16     Best:        	White=1     	Black=5} (55... Nc3 $142 56. Kh1 Ne2 (56... Rxf1+ $2 57. Kh2 $19) 57. Kh2 Kd3 (57... Rxf1 {is a self mate.} 58. Rc4+ Kd3 59. Rd4+ Kc3 60. Rd3+ Kb4 61. Rd4+ Kxc5 62. Rc4+ Kd6 63. Rxc6+ Ke5 64. Re6+ Kd4 65. Re4+ Kc3 66. Rc4+ Kd2 67. Rc2+ Ke1 68. Rc1+ Kxf2 69. Rc2 Rg1 70. Rxe2+ Kxe2 71. Kxg1 d4 72. Kh1 d3 73. Kh2 d2 74. Kh1 d1=Q+ 75. Kh2 f2 76. Kg2 Qg1#) 58. Rb2 Rxf1 59. Rb3+ Kd2 60. Rd3+ Ke1 61. Rd1+ Kxf2 62. Rd2 Rg1 (62... Ke3 63. Rd3+ Kf2 64. Rd2 Rg1 65. Rxe2+ Kxe2 66. Kxg1 f2+ 67. Kg2 d4 68. Kh1 d3 69. Kh2 d2 70. Kh1 d1=Q+ 71. Kh2 Qg1#) 63. Rxe2+ Kxe2 64. Kxg1 f2+ 65. Kg2 d4 (65... f1=R 66. Kh2 d4 67. Kg2 d3 68. Kh2 Rf2+ 69. Kh1 d2 70. Kg1 d1=Q#) 66. Kh1 d3 (66... f1=R+ {leads to mate.} 67. Kg2 d3 68. Kh2 Rf2+ 69. Kh1 d2 70. Kg1 d1=Q#) (66... f1=Q+ 67. Kh2 Qc1 68. Kg2 Qd2 69. Kg1 Kf3 70. Kh1 Qg2#) 67. Kh2 d2 (67... f1=R {gets mated.} 68. Kg2 Rf2+ 69. Kh1 d2 70. Kg1 d1=Q#) 68. Kh1 d1=Q+ 69. Kh2 Qg1#) 0-1

[Event "Czech Open Rapid G1 2024"]
[Site "Pardubice"]
[Date "2024.07.17"]
[Round "2.7"]
[White "Jirka, Jiri"]
[Black "Hosticka, Frantisek"]
[Result "1-0"]
[Annotator "TA"]
[ECO "E00"]
[WhiteElo "2387"]
[BlackElo "2062"]
[PlyCount "85"]
[EventDate "2024.07.16"]
[EventType "swiss"]
[EventCountry "CZE"]
[SourceTitle "playchess.com"]
[Source "ChessBase"]
[SourceQuality "1"]
[TimeControl "1200+10"]

{[%evp 9,85,16,12,20,18,0,18,27,21,11,19,22,23,11,14,14,47,47,193,182,206,206,274,228,228,230,221,214,307,287,293,296,324,319,294,281,281,283,336,329,333,337,477,467,499,494,483,475,479,491,542,561,538,516,746,700,768,706,750,731,802,820,698,672,1327,1505,2028,2372,1755,2431,5720,4694,29978,29977,29981,29982,29980,29973]} 1. d4 {[%emt 0:00:03]} Nf6 {[%emt 0:00:03]} 2. c4 {[%emt 0:00:10]} e6 {[%emt 0:00:10]} 3. g3 {[%emt 0:00:10]} Bb4+ {[%emt 0:00:10]} 4. Bd2 {[%emt 0:00:10]} Qe7 {[%emt 0:00:10]} 5. Nc3 {[%emt 0:00:10]} Bxc3 {[%emt 0:00:10]} 6. Bxc3 {[%emt 0:00:00]} Ne4 {[%emt 0:00:00]} 7. Rc1 {[%emt 0:00:07][%cal Ba1c1,Bc1c3,Bc3e3][%mdl 32]} O-O {[%emt 0:00:48]} 8. Bg2 {[%emt 0:00:03] The position is equal.} Nxc3 {[%emt 0:00:02]} 9. Rxc3 {[%emt 0:00:02]} d6 {[%emt 0:00:15]} 10. Nf3 {[%emt 0:00:04][%cal Bg1f3,Bf3e5,Be5d3,Bd3f4][%mdl 32]} Nd7 {[%emt 0:00:35]} 11. O-O {[%emt 0:02:13]} e5 {[%emt 0:00:41]} 12. Re3 {[%emt 0:02:47]} Qf6 {[%emt 0:00:56]} 13. Qd2 {[%emt 0:04:25]} Nb6 {[%emt 0:02:11] Loses the game.} ({Better is} 13... Re8 $14) 14. dxe5 $18 {[%emt 0:02:36]} dxe5 {[%emt 0:00:27]} 15. Nxe5 {[%emt 0:04:55]} Re8 {[%emt 0:02:53] [#]} 16. b3 $1 {[%emt 0:00:19]} h6 {[%emt 0:01:36]} (16... Rxe5 $2 {perishes.} 17. Rxe5 Be6 18. Qe3 $18) 17. Nd3 {[%emt 0:01:20]} Rxe3 {[%emt 0:01:52]} 18. Qxe3 {[%emt 0:00:25]} ({But not} 18. fxe3 Qe7 19. Rd1 c6) 18... Bd7 {[%emt 0:01:15]} (18... c6 {was called for.} 19. a4 Nd7 20. Qe8+ Nf8) 19. c5 {[%emt 0:01:11]} Re8 {[%emt 0:00:29]} 20. Qf4 {[%emt 0:00:03]} Qxf4 {[%emt 0:00:43]} 21. Nxf4 {[%emt 0:00:01]} Nc8 {[%emt 0:00:16]} 22. Bxb7 {[%emt 0:00:03]} Ne7 {[%emt 0:00:20]} 23. Rd1 {[%emt 0:00:11]} Bc6 {[%emt 0:00:06]} 24. Bxc6 {[%emt 0:00:08]} Nxc6 {[%emt 0:00:01][%mdl 4096] Endgame. KRN-KRN} 25. Rd7 {[%emt 0:00:13]} g5 {[%emt 0:00:30]} (25... Re7 $142 26. Rxe7 Nxe7) 26. Rxc7 {[%emt 0:00:43]} gxf4 {[%emt 0:00:23]} 27. Rxc6 {[%emt 0:00:07]} Rxe2 {[%emt 0:00:03]} 28. gxf4 {[%emt 0:00:12]} ({Not} 28. Rxh6 Rxa2 29. gxf4 Kg7 $18) 28... Rxa2 {[%emt 0:00:12]} 29. Rxh6 {[%emt 0:00:03] KR-KR} Kg7 {[%emt 0:01:20]} 30. Rh3 {[%emt 0:00:05]} Rc2 {[%emt 0:00:09]} 31. b4 {[%emt 0:00:01]} Rc4 {[%emt 0:00:01]} 32. Rb3 {[%emt 0:00:19]} Kf6 {[%emt 0:00:11]} 33. Kg2 {[%emt 0:00:14]} Kf5 {[%emt 0:00:18]} 34. Kg3 {[%emt 0:00:01]} Rc1 {[%emt 0:00:51]} 35. Ra3 {[%emt 0:00:06]} Rg1+ {[%emt 0:00:20]} 36. Kf3 {[%emt 0:00:04][%cal Oc5c6] [#] aiming for c6!} Rg4 {[%emt 0:00:05]} 37. Ke2 {[%emt 0:00:31]} Kxf4 {[%emt 0:01:18]} 38. Rxa7 {[%emt 0:00:14]} Ke5 {[%emt 0:00:24]} 39. b5 {[%emt 0:00:09][%cal Oc5c6,Bb4b5,Bb5b6,Bb6b7][%mdl 32] Black must now prevent c6!} Rb4 {[%emt 0:00:33]} 40. b6 {[%emt 0:00:15][%cal Oa7d7] Rd7! would now be deadly.} f5 {[%emt 0:00:23]} 41. Rc7 {[%emt 0:00:21] White mates.} Ke4 {[%emt 0:00:38]} 42. b7 {[%emt 0:00:14]} Rb2+ {[%emt 0:00:07]} 43. Kd1 {[%emt 0:01:28] Weighted Error Value: White=0.04 (flawless) /Black=0.32.  Mistake:       	---       	Black=3      Inaccurate:     	---       	Black=3      OK:         	White=14    	Black=11     Best:        	White=3     	---} 1-0

[Event "Czech Open Rapid G1 2024"]
[Site "Pardubice"]
[Date "2024.07.17"]
[Round "2.8"]
[White "Alexikov, Alexander"]
[Black "Johansson, Linus"]
[Result "1/2-1/2"]
[Annotator "RC"]
[ECO "C07"]
[WhiteElo "2183"]
[BlackElo "2451"]
[PlyCount "190"]
[EventDate "2024.07.16"]
[EventType "swiss"]
[EventCountry "CZE"]
[SourceTitle "playchess.com"]
[Source "ChessBase"]
[SourceQuality "1"]
[TimeControl "1200+10"]

1. e4 {[%emt 0:00:01]} e6 {[%emt 0:00:03]} 2. d4 {[%emt 0:00:03]} d5 {[%emt 0:00:01]} 3. Nd2 {[%emt 0:00:06]} c5 {[%emt 0:00:01]} 4. Ngf3 {[%emt 0:00:14]} cxd4 {[%emt 0:00:03]} 5. exd5 {[%emt 0:00:04]} Qxd5 {[%emt 0:00:06]} 6. Bc4 {[%emt 0:00:28]} Qd6 {[%emt 0:00:02]} 7. O-O {[%emt 0:00:36]} Nf6 {[%emt 0:00:02]} 8. Nb3 {[%emt 0:00:56]} Nc6 {[%emt 0:00:01]} 9. Nbxd4 {[%emt 0:00:03]} Nxd4 {[%emt 0:00:01]} 10. Qxd4 {[%emt 0:00:01]} Qxd4 {[%emt 0:00:02]} 11. Nxd4 {[%emt 0:00:02]} Bc5 {[%emt 0:00:01]} 12. Nb3 {[%emt 0:02:31]} Bb6 {[%emt 0:00:02]} 13. Be2 {[%emt 0:00:06]} Bd7 {[%emt 0:00:03]} 14. Bf3 {[%emt 0:00:02]} Bc6 {[%emt 0:00:01]} 15. Bxc6+ {[%emt 0:00:02]} bxc6 {[%emt 0:00:02]} 16. c4 {[%emt 0:00:37]} a5 {[%emt 0:00:12]} 17. c5 {[%emt 0:00:31]} a4 {[%emt 0:01:23]} 18. cxb6 {[%emt 0:00:10]} axb3 {[%emt 0:00:01]} 19. Bf4 {[%emt 0:00:48]} O-O-O {[%emt 0:01:42]} 20. Bc7 {[%emt 0:00:54]} Kb7 {[%emt 0:00:10]} 21. Bxd8 {[%emt 0:00:27]} Rxd8 {[%emt 0:00:01]} 22. axb3 {[%emt 0:00:07]} Kxb6 {[%emt 0:00:06]} 23. Rfd1 {[%emt 0:00:09]} Nd5 {[%emt 0:00:03]} 24. Kf1 {[%emt 0:00:13]} e5 {[%emt 0:00:17]} 25. g3 {[%emt 0:00:05]} f5 {[%emt 0:00:05]} 26. Ke2 {[%emt 0:00:34]} g5 {[%emt 0:00:08]} 27. Ra4 {[%emt 0:00:02]} g4 {[%emt 0:00:21]} 28. h3 {[%emt 0:00:07]} h5 {[%emt 0:00:18]} 29. hxg4 {[%emt 0:00:06]} hxg4 {[%emt 0:00:02]} 30. Rh1 {[%emt 0:00:04]} Rd6 {[%emt 0:02:07]} 31. Rh5 {[%emt 0:00:29]} Rf6 {[%emt 0:00:17]} 32. Rg5 {[%emt 0:00:02]} Nc7 {[%emt 0:00:30]} 33. Rg8 {[%emt 0:05:17]} Ne6 {[%emt 0:01:12]} 34. Rc4 {[%emt 0:03:36]} Kc7 {[%emt 0:00:23]} 35. Kd3 {[%emt 0:00:18]} Kd6 {[%emt 0:00:10]} 36. Rc8 {[%emt 0:00:26]} Nd4 {[%emt 0:00:24]} 37. Rxd4+ {[%emt 0:00:05]} exd4 {[%emt 0:00:02]} 38. Rd8+ {[%emt 0:00:10]} Kc5 {[%emt 0:01:46]} 39. Rxd4 {[%emt 0:00:03]} Re6 {[%emt 0:00:01]} 40. Rf4 {[%emt 0:00:27]} Rd6+ {[%emt 0:00:19]} 41. Kc3 {[%emt 0:00:03]} Rd5 {[%emt 0:00:02]} 42. Ra4 {[%emt 0:00:22]} Kb6 {[%emt 0:00:24]} 43. Ra8 {[%emt 0:00:17]} Kb7 {[%emt 0:01:43]} 44. Ra4 {[%emt 0:01:02]} Kb6 {[%emt 0:00:10]} 45. Rb4+ {[%emt 0:00:02]} Kc5 {[%emt 0:01:05]} 46. Rb8 {[%emt 0:00:11]} Re5 {[%emt 0:00:01]} 47. Kd3 {[%emt 0:00:09]} Re4 {[%emt 0:01:00]} 48. Rf8 {[%emt 0:00:17]} Re5 {[%emt 0:00:01]} 49. Rf6 {[%emt 0:00:11]} Kb5 {[%emt 0:00:27]} 50. Kd4 {[%emt 0:00:11]} Re4+ {[%emt 0:00:05]} 51. Kc3 {[%emt 0:00:04]} Re5 {[%emt 0:00:03]} 52. Rf8 {[%emt 0:00:06]} Kc5 {[%emt 0:00:19]} 53. Kd3 {[%emt 0:00:29]} Kb4 {[%emt 0:00:34]} 54. Rb8+ {[%emt 0:00:03]} Kc5 {[%emt 0:00:01]} 55. Rb7 {[%emt 0:00:53]} Kd6 {[%emt 0:00:52]} 56. Rb4 {[%emt 0:00:04]} Re1 {[%emt 0:00:38]} 57. Rf4 {[%emt 0:00:07]} Ke5 {[%emt 0:00:32]} 58. Rc4 {[%emt 0:00:37]} Kd5 {[%emt 0:00:05]} 59. Rc2 {[%emt 0:00:07]} Re8 {[%emt 0:00:30]} 60. b4 {[%emt 0:00:22]} Kd6 {[%emt 0:01:11]} 61. Rc5 {[%emt 0:00:13]} Rf8 {[%emt 0:00:48]} 62. Kc4 {[%emt 0:00:14]} Rf7 {[%emt 0:00:22]} 63. b5 {[%emt 0:00:16]} cxb5+ {[%emt 0:00:25]} 64. Rxb5 {[%emt 0:00:02]} Ke6 {[%emt 0:03:21]} 65. Kd4 {[%emt 0:01:14]} Rd7+ {[%emt 0:01:28]} 66. Ke3 {[%emt 0:00:06]} Kf6 {[%emt 0:00:01]} 67. b4 {[%emt 0:00:36]} Re7+ {[%emt 0:00:16]} 68. Kd3 {[%emt 0:00:16]} Rd7+ {[%emt 0:00:01]} 69. Kc3 {[%emt 0:00:09]} Rd1 {[%emt 0:00:21]} 70. Ra5 {[%emt 0:00:12]} Rc1+ {[%emt 0:00:13]} 71. Kd3 {[%emt 0:00:16]} Rd1+ {[%emt 0:00:05]} 72. Ke2 {[%emt 0:00:13]} Rb1 {[%emt 0:00:02]} 73. Rb5 {[%emt 0:00:03]} Rb2+ {[%emt 0:00:12]} 74. Ke3 {[%emt 0:00:00]} Rb3+ {[%emt 0:00:02]} 75. Ke2 {[%emt 0:00:11]} Rb2+ {[%emt 0:00:02]} 76. Kf1 {[%emt 0:00:02]} Rb1+ {[%emt 0:00:29]} 77. Ke2 {[%emt 0:00:06]} Rb2+ {[%emt 0:00:01]} 78. Ke1 {[%emt 0:00:02]} Rb1+ {[%emt 0:00:04]} 79. Kd2 {[%emt 0:00:01]} Rb2+ {[%emt 0:00:01]} 80. Ke1 {[%emt 0:00:00]} Rb1+ {[%emt 0:00:01]} 81. Ke2 {[%emt 0:00:01]} Rb2+ {[%emt 0:00:02]} 82. Kf1 {[%emt 0:00:00]} Rb1+ {[%emt 0:00:03]} 83. Kg2 {[%emt 0:00:15]} Rb3 {[%emt 0:00:02]} 84. Rb8 {[%emt 0:00:04]} Ke6 {[%emt 0:00:44]} 85. b5 {[%emt 0:00:03]} Kd7 {[%emt 0:00:26]} 86. b6 {[%emt 0:00:01]} Kc6 {[%emt 0:00:02]} 87. Rf8 {[%emt 0:00:06]} Rb5 {[%emt 0:00:28]} 88. Rf6+ {[%emt 0:00:05]} Kb7 {[%emt 0:00:01]} 89. Kf1 {[%emt 0:00:02]} Re5 {[%emt 0:00:02]} 90. Rh6 {[%emt 0:00:05]} Ka6 {[%emt 0:00:08]} 91. Rg6 {[%emt 0:00:01]} Kb7 {[%emt 0:00:04]} 92. f3 {[%emt 0:00:04]} Re3 {[%emt 0:00:21]} 93. fxg4 {[%emt 0:00:03]} Rxg3 {[%emt 0:00:01]} 94. g5 {[%emt 0:00:33]} f4 {[%emt 0:00:12]} 95. Kf2 {[%emt 0:00:01]} Ka6 {[%emt 0:00:04]} 1/2-1/2